bitfinex-derivatives/quotes_ETHF0:USTF0_20250730
["timestamp","ask_amount","ask_price","bid_price","bid_amount"]
[1753862791025,0.9728,3815.0,3814.9,1.98277]
[1753862792227,1.3925,3815.0,3814.9,1.98277]
[1753862793526,1.687,3815.0,3814.9,1.98277]
[1753862794030,0.52422,3815.4,3815.0,0.52426]
[1753862794227,2.21122,3815.4,3815.3,0.1949]
[1753862794433,1.20842,3815.4,3815.1,20.982]
[1753862794628,0.2886,3815.2,3815.1,21.6643]
[1753862794834,1.687,3815.2,3815.1,22.1527]
[1753862795331,0.2886,3815.2,3815.1,22.4405]
[1753862795732,0.4757,3815.2,3815.1,22.4405]
[1753862796134,0.7738,3815.2,3815.1,22.4405]
[1753862798328,1.687,3815.2,3815.1,1.4585]
[1753862798530,1.687,3815.2,3815.1,0.1949]
[1753862798833,1.687,3815.2,3815.1,21.1729]
[1753862799034,1.687,3815.2,3815.1,21.6603]
[1753862799227,1.687,3815.2,3815.1,21.8597]
[1753862799821,1.687,3815.2,3815.1,22.1487]
[1753862800627,1.687,3815.2,3815.1,22.4365]
[1753862803336,1.687,3815.2,3815.1,22.1487]
[1753862803739,1.687,3815.1,3815.0,0.52426]
[1753862804034,1.687,3815.1,3815.0,21.49926]
[1753862805530,1.687,3815.1,3815.0,21.69416]
[1753862805731,1.687,3815.1,3815.0,22.38096]
[1753862806538,1.687,3815.1,3815.0,22.66996]
[1753862808746,1.687,3815.1,3815.0,22.95776]
[1753862809645,0.2886,3815.6,3815.5,0.7191]
[1753862809839,1.687,3815.6,3815.5,22.9547]
[1753862810739,1.687,3815.6,3815.5,22.6669]
[1753862815845,1.7014,3815.6,3815.5,22.6669]
[1753862816543,1.7014,3815.6,3815.5,22.1745]
[1753862817050,1.7014,3815.6,3815.5,22.6547]
[1753862817236,1.7014,3815.6,3815.5,22.9478]
[1753862819540,1.7014,3815.6,3815.5,22.6547]
[1753862821942,1.4738,3815.9,3815.8,1.49706]
[1753862822251,0.5087,3815.9,3815.8,22.95516]
[1753862822453,0.5037,3816.2,3816.1,1.20152]
[1753862822646,0.018,3816.3,3816.1,22.95412]
[1753862822846,0.5037,3816.2,3816.1,22.16552]
[1753862823045,1.7737,3816.2,3816.1,22.16552]
[1753862823555,1.7737,3816.2,3816.1,22.95412]
[1753862823754,0.8124,3816.2,3816.1,22.95412]
[1753862824653,1.2658,3816.2,3816.1,22.95412]
[1753862826453,1.7737,3816.2,3816.1,22.1369]
[1753862827149,1.7737,3816.2,3816.1,20.964]
[1753862828452,0.4999,3816.0,3815.9,1.01555]
[1753862828647,0.6064,3815.8,3815.7,0.52417]
[1753862828854,0.6064,3815.8,3815.1,0.2931]
[1753862828855,1.2738,3815.7,3815.6,0.52418]
[1753862829055,1.7737,3815.7,3815.6,20.96]
[1753862830645,1.7737,3815.7,3815.4,0.52421]
[1753862830853,1.7737,3815.6,3815.5,20.959]
[1753862832056,1.7737,3815.6,3815.4,1.01901]
[1753862832253,0.7059,3815.6,3815.5,20.96]
[1753862832556,0.7059,3815.6,3815.4,20.959]
[1753862832753,1.7737,3815.5,3815.4,20.959]
[1753862833152,0.3057,3815.4,3815.3,21.48322]
[1753862833357,1.7737,3815.4,3815.3,21.48322]
[1753862834057,1.7737,3815.4,3815.3,21.77872]
[1753862834559,1.7737,3815.4,3815.3,22.17592]
[1753862834855,1.7737,3815.4,3815.3,22.65542]
[1753862835656,0.9571,3815.7,3815.6,0.1959]
[1753862835862,1.1593,3816.1,3816.0,0.6774]
[1753862836053,1.465,3816.1,3816.0,1.1722]
[1753862836356,1.7737,3816.1,3816.0,1.1722]
[1753862836753,1.7737,3816.1,3816.0,1.69633]
[1753862836954,1.7737,3816.1,3816.0,1.1722]
[1753862840054,1.7737,3816.1,3816.0,0.892]
[1753862844963,1.7737,3816.1,3816.0,0.6927]
[1753862845463,1.7737,3816.1,3816.0,0.4914]
[1753862846464,1.7737,3816.1,3816.0,0.6789]
[1753862846666,1.7737,3816.1,3816.0,0.878]
[1753862849060,0.018,3816.3,3816.0,1.1759]
[1753862849258,0.5084,3816.1,3816.0,1.20543]
[1753862849467,1.7068,3816.1,3816.0,1.20543]
[1753862849666,0.7022,3815.8,3815.7,1.21607]
[1753862849859,1.7068,3815.8,3815.7,1.11727]
[1753862850059,1.7068,3815.8,3815.7,1.41227]
[1753862850865,1.7068,3815.8,3815.7,1.71017]
[1753862851461,1.7068,3815.8,3815.7,2.00037]
[1753862853167,1.7068,3815.8,3815.7,0.73067]
[1753862853367,1.7068,3815.8,3815.5,20.954]
[1753862853368,1.7068,3815.8,3815.6,0.52418]
[1753862853569,1.7068,3815.7,3815.6,1.41228]
[1753862853774,1.7068,3815.7,3815.6,1.71018]
[1753862854468,1.7068,3815.7,3815.6,2.00038]
[1753862854965,0.7155,3815.6,3815.3,0.52422]
[1753862855166,0.7022,3815.3,3815.2,22.16914]
[1753862855368,1.7068,3815.3,3815.2,22.16914]
[1753862855768,1.7068,3815.3,3815.2,22.66324]
[1753862856070,1.7068,3815.3,3815.2,0.2065]
[1753862856471,1.7068,3815.3,3815.2,0.5015]
[1753862856868,1.7068,3815.3,3815.2,1.71024]
[1753862857975,42.11027,3816.2,3815.6,1.186]
[1753862857976,0.2908,3816.0,3815.6,1.186]
[1753862858178,0.9198,3815.9,3815.7,1.30846]
[1753862858475,1.2239,3815.9,3815.8,1.4762]
[1753862858874,1.7068,3815.9,3815.7,0.52416]
[1753862859168,1.7068,3815.8,3815.7,1.41516]
[1753862859574,1.7068,3815.8,3815.7,1.71016]
[1753862859965,1.7068,3815.8,3815.7,2.00036]
[1753862861070,1.4177,3815.8,3815.7,2.00036]
[1753862861878,0.993,3815.8,3815.7,2.00036]
[1753862862076,1.7248,3816.3,3816.2,1.186]
[1753862863567,1.7248,3816.3,3816.2,0.689]
[1753862863775,1.2419,3816.3,3816.2,1.4762]
[1753862864372,1.531,3816.3,3816.2,1.4762]
[1753862864674,1.7248,3816.3,3816.2,1.4762]
[1753862865171,1.7248,3816.3,3816.2,1.186]
[1753862865376,1.7248,3816.3,3816.2,1.7101]
[1753862865975,1.7248,3816.3,3816.2,2.0003]
[1753862868579,0.018,3816.3,3816.2,1.7101]
[1753862868884,0.018,3816.3,3816.2,2.0003]
[1753862870682,0.3088,3816.3,3816.2,2.0003]
[1753862871582,0.018,3816.3,3816.2,2.0003]
[1753862871880,0.018,3816.3,3816.2,7.2410468]
[1753862872087,0.3004,3816.7,3816.6,2.00035]
[1753862872383,0.5012,3816.7,3816.6,22.94635]
[1753862872583,1.5535,3816.7,3816.6,22.94635]
[1753862872973,1.7487,3816.7,3816.6,22.94635]
[1753862873782,0.3004,3817.2,3816.8,0.2926]
[1753862873985,1.7487,3817.1,3817.0,0.8801]
[1753862874585,2.27268,3817.1,3817.0,0.8801]
[1753862874786,2.27268,3817.1,3817.0,0.6816]
[1753862875989,2.27268,3817.1,3817.0,0.2022]
[1753862876989,2.27268,3817.1,3817.0,0.6933]
[1753862877288,2.27268,3817.1,3817.0,0.8801]
[1753862881991,2.27268,3817.1,3817.0,0.2022]
[1753862882197,1.7487,3816.7,3816.6,21.8261]
[1753862882494,1.7487,3816.7,3816.6,22.1349]
[1753862883296,0.2008,3817.2,3817.1,0.1868]
[1753862883497,0.9842,3817.2,3817.1,0.8963]
[1753862883697,0.9842,3817.2,3817.1,1.1889]
[1753862883900,1.7487,3817.2,3817.1,1.1889]
[1753862886896,0.4956,3817.2,3817.1,1.1889]
[1753862887096,0.2,3817.9,3817.1,1.1889]
[1753862887097,1.7487,3817.8,3817.7,1.1889]
[1753862887999,0.20558227,3818.5,3817.7,1.1889]
[1753862888000,0.65831634,3819.3,3819.1,0.5237]
[1753862888296,0.3004,3820.5,3819.7,0.2022]
[1753862888498,0.92163609,3820.4,3819.8,21.142]
[1753862888805,1.7487,3820.2,3820.1,5.7622577]
[1753862889003,1.7487,3820.2,3820.1,21.66357]
[1753862889297,1.30696684,3820.2,3820.1,27.61765669]
[1753862889502,1.30696684,3820.2,3820.1,22.38168037]
[1753862889704,1.30696684,3820.2,3820.1,27.90447688]
[1753862889896,0.9842,3820.2,3820.1,27.90447688]
[1753862890406,0.4293,3820.2,3820.1,28.39927688]
[1753862891206,0.7297,3820.2,3820.1,28.39927688]
[1753862891407,0.5012,3820.2,3820.1,28.39927688]
[1753862892293,0.2967,3820.4,3820.3,1.22134]
[1753862892496,0.7834,3820.4,3820.3,2.39445037]
[1753862892801,1.4483,3820.4,3820.3,2.39445037]
[1753862894596,0.9879,3821.7,3821.6,1.22116]
[1753862894804,1.452,3821.7,3821.6,2.10647037]
[1753862894999,1.452,3821.7,3821.6,0.19361037]
[1753862895298,0.6875,3821.7,3821.6,0.19477192]
[1753862895504,1.452,3821.6,3821.5,0.389]
[1753862895696,1.452,3821.6,3821.5,0.87637585]
[1753862896206,1.452,3821.6,3821.5,1.87167585]
[1753862896409,0.4641,3822.8,3822.2,1.30628]
[1753862896609,0.9879,3822.7,3822.6,1.22103]
[1753862896908,1.7487,3822.7,3822.6,1.91273]
[1753862897109,2.90889039,3822.7,3822.6,1.91273]
[1753862898000,2.90889039,3822.7,3822.2,21.96267]
[1753862898196,2.09415039,3822.5,3822.4,0.389]
[1753862898400,2.09415039,3822.5,3822.4,0.58322238]
[1753862898401,2.38565039,3822.5,3822.4,0.58322238]
[1753862898702,0.6875,3823.0,3822.9,1.22098]
[1753862898908,1.1516,3823.0,3822.9,1.91268]
[1753862899099,0.2008,3822.8,3822.7,0.5232]
[1753862899299,1.7487,3822.8,3822.7,2.3943006]
[1753862899905,1.7487,3822.8,3822.7,0.1942006]
[1753862900711,0.6875,3822.8,3822.7,6.12383632]
[1753862901012,0.7927,3822.8,3822.7,2.3943106]
[1753862901313,1.7487,3822.8,3822.7,0.5832006]
[1753862901509,1.7487,3822.8,3822.7,0.1942006]
[1753862902108,0.2194,3822.8,3822.7,1.8253106]
[1753862902606,1.5592,3823.0,3822.9,2.14839]
[1753862902810,0.8128,3823.3,3823.2,1.6252]
[1753862903011,1.98,3823.3,3823.2,1.6252]
[1753862903512,1.98,3823.0,3822.9,1.2262]
[1753862904710,1.98,3823.0,3822.9,1.9449]
[1753862905110,0.526,3823.0,3822.9,2.19020126]
[1753862905500,0.8465,3823.0,3822.9,2.19020126]
[1753862905699,0.8465,3823.0,3822.9,1.9449]
[1753862905909,1.98,3823.0,3822.9,1.87050132]
[1753862906403,1.98,3823.0,3822.9,0.53010132]
[1753862906605,1.98,3823.0,3822.9,0.24530132]
[1753862907709,0.52315,3823.2,3822.9,0.24530132]
[1753862908012,1.98,3823.0,3822.9,0.5075]
[1753862908205,1.98,3823.0,3822.9,0.22941683]
[1753862908605,1.98,3823.0,3822.9,0.21147138]
[1753862908805,1.98,3823.0,3822.9,1.83667138]
[1753862909004,1.98,3823.0,3822.9,0.21147138]
[1753862910414,1.98,3823.0,3822.9,2.15637138]
[1753862911009,0.2,3823.9,3823.1,0.438]
[1753862911213,0.8128,3823.2,3823.1,1.2262]
[1753862911413,1.98,3823.2,3823.1,2.15645057]
[1753862912108,1.5592,3823.2,3823.1,2.43961429]
[1753862914113,1.5592,3823.2,3823.1,2.44010841]
[1753862915217,0.8128,3823.8,3823.7,0.52308]
[1753862915514,1.1333,3823.8,3823.7,2.96318841]
[1753862915715,1.98,3823.8,3823.7,2.96318841]
[1753862916508,1.98,3823.8,3823.7,2.44010841]
[1753862917509,0.2,3823.9,3823.7,2.12040841]
[1753862917709,2.18,3823.9,3823.8,2.44010841]
[1753862918415,1.9838048,3823.9,3823.8,2.44010841]
[1753862918616,1.9838048,3823.9,3823.8,0.78000841]
[1753862919012,1.9838048,3823.9,3823.8,0.49520841]
[1753862919715,2.2018048,3823.9,3823.8,0.49520841]
[1753862920216,0.5934,3823.3,3823.2,0.5075]
[1753862920423,1.98,3823.3,3823.2,1.2262]
[1753862920926,1.98,3823.3,3823.2,1.55392199]
[1753862921219,1.98,3823.3,3823.2,0.32772199]
[1753862923122,1.98,3823.3,3823.2,1.95292199]
[1753862923414,1.98,3823.3,3823.2,2.27262199]
[1753862924013,2.50313,3823.3,3823.2,2.27262199]
[1753862924213,1.04913,3823.3,3823.2,2.27262199]
[1753862924410,1.36963,3823.3,3823.2,2.27262199]
[1753862924619,1.79553,3823.3,3823.2,2.27262199]
[1753862924817,2.50313,3823.3,3823.2,2.27262199]
[1753862925815,2.50313,3823.3,3823.2,0.32772199]
[1753862926120,2.50313,3823.3,3823.2,1.27322199]
[1753862926322,2.50313,3823.3,3823.2,1.67222199]
[1753862926620,2.50313,3823.3,3823.2,1.95292199]
[1753862927618,2.50313,3823.3,3823.2,0.32772199]
[1753862930028,2.5032,3822.8,3822.7,0.5075]
[1753862930324,2.50323,3822.6,3822.5,1.3445]
[1753862930526,0.52326,3822.4,3821.7,21.648]
[1753862930823,1.75687,3822.3,3822.2,1.9449]
[1753862931019,1.2336,3822.3,3822.2,1.9449]
[1753862931325,0.8128,3822.3,3822.2,1.9449]
[1753862931827,1.33607,3822.3,3822.2,1.9449]
[1753862932117,0.4259,3822.5,3822.2,1.1567]
[1753862932321,1.04547,3822.3,3822.2,0.8057]
[1753862932624,1.2914,3822.3,3822.2,1.32898]
[1753862932824,1.5815,3822.3,3822.2,1.9334]
[1753862933219,2.10477,3822.3,3822.2,1.9334]
[1753862933614,2.52727,3822.3,3822.2,1.9334]
[1753862933821,2.004,3822.3,3822.2,1.9334]
[1753862934121,2.004,3822.3,3822.0,0.5233]
[1753862934320,1.75807,3822.3,3822.2,1.2314]
[1753862934825,2.004,3822.3,3822.2,1.6307]
[1753862935027,2.004,3822.3,3822.2,2.15398]
[1753862935221,2.004,3822.3,3822.2,2.45668]
[1753862935422,2.004,3822.3,3822.2,1.9334]
[1753862936924,1.5815,3822.3,3822.2,1.9334]
[1753862937525,1.127,3822.3,3822.2,1.9334]
[1753862937726,1.40024,3822.6,3822.3,0.52327]
[1753862937920,2.004,3822.6,3822.5,0.8057]
[1753862938121,2.004,3822.6,3822.5,1.9334]
[1753862939520,2.004,3822.6,3822.5,1.6307]
[1753862939716,2.004,3822.6,3822.5,0.9364]
[1753862940215,2.004,3822.6,3822.5,0.2917]
[1753862940421,2.52727,3822.3,3822.2,1.6307]
[1753862940615,2.52727,3822.3,3822.0,0.5233]
[1753862940819,2.004,3822.2,3822.1,1.3357]
[1753862941426,2.004,3822.2,3822.1,1.9334]
[1753862942916,1.5815,3822.2,3822.1,1.5341]
[1753862943121,0.3094,3822.2,3822.1,1.9334]
[1753862943317,1.2348,3822.4,3822.3,0.8057]
[1753862943521,2.004,3822.4,3822.3,1.9334]
[1753862944321,2.004,3822.4,3822.3,1.6307]
[1753862944523,0.8123,3822.2,3822.1,0.52329]
[1753862944816,2.004,3822.2,3822.1,1.3357]
[1753862945022,2.004,3822.2,3822.1,1.6307]
[1753862945222,2.004,3822.2,3822.1,1.9334]
[1753862945423,2.004,3822.2,3822.1,4.26476773]
[1753862946329,2.004,3822.2,3822.1,1.9334]
[1753862946924,2.004,3822.2,3822.1,4.27841529]
[1753862947232,2.004,3822.2,3822.1,1.9334]
[1753862952428,2.52728,3822.2,3822.0,3.28628475]
[1753862952633,2.004,3822.1,3822.0,3.28628475]
[1753862952826,0.8123,3822.1,3821.9,0.52331]
[1753862953026,2.004,3822.0,3821.9,1.85901]
[1753862953235,2.004,3822.0,3821.9,5.44029475]
[1753862953632,2.52731,3822.0,3821.8,3.28628475]
[1753862953835,1.33561,3822.0,3821.9,2.3457107]
[1753862954130,1.04554,3821.8,3821.7,1.4699107]
[1753862954330,47.61474,3821.8,3821.7,1.4699107]
[1753862954536,1.04561,3821.3,3821.2,4.22268475]
[1753862954840,1.2914,3822.0,3821.9,1.9334]
[1753862955232,42.0914,3822.0,3821.9,1.9334]
[1753862955731,1.2914,3822.0,3821.9,1.9334]
[1753862958031,1.2914,3822.0,3821.9,1.6307]
[1753862963041,1.2914,3822.0,3821.9,0.4257]
[1753862963240,1.9591,3821.2,3821.1,3.56768475]
[1753862963538,1.9591,3821.2,3821.1,1.75903]
[1753862963738,1.9591,3821.2,3821.1,2.07173]
[1753862963935,1.9591,3821.2,3821.1,0.2814]
[1753862964134,1.9591,3821.2,3820.9,3.28628475]
[1753862964135,1.9591,3821.0,3820.9,4.07598475]
[1753862964336,0.7902,3820.8,3820.7,3.28628475]
[1753862964531,1.9591,3820.8,3820.7,3.78718475]
[1753862964737,1.9591,3820.8,3820.7,4.52188475]
[1753862965242,1.9591,3820.8,3820.7,4.93008475]
[1753862965443,1.9591,3820.8,3820.7,3.28628475]
[1753862965743,2.48259,3820.7,3820.6,3.28628475]
[1753862965940,2.48259,3820.7,3820.4,3.28628475]
[1753862966141,1.31372,3820.5,3820.4,3.97588475]
[1753862966342,2.48262,3820.5,3820.4,3.97588475]
[1753862967138,2.48262,3820.5,3820.4,3.28628475]
[1753862967838,0.5236,3819.9,3819.8,0.2195]
[1753862968140,0.5236,3819.9,3819.8,1.9565]
[1753862968141,1.2292,3819.9,3819.8,1.9565]
[1753862969435,0.2865,3819.4,3819.2,0.23782821]
[1753862969640,1.22928,3819.3,3819.2,1.66212821]
[1753862969943,0.7056,3819.3,3819.2,1.66212821]
[1753862970143,0.7056,3819.3,3819.2,1.97482821]
[1753862973940,0.7056,3819.3,3819.2,0.33102821]
[1753862974542,0.7056,3819.3,3819.2,0.01832821]
[1753862975446,0.7056,3819.3,3819.2,0.33102821]
[1753862977144,0.81026,3818.7,3818.6,1.9565]
[1753862977442,0.6909,3818.7,3818.6,1.9565]
[1753862977645,0.6909,3818.7,3818.6,1.5106]
[1753862977836,0.6909,3818.7,3818.6,0.3127]
[1753862978042,0.4044,3818.9,3818.6,1.9565]
[1753862978243,1.21463,3819.0,3818.9,1.9565]
[1753862979248,42.01463,3819.0,3818.9,1.9565]
[1753862981944,41.4909,3819.0,3818.9,1.9565]
[1753862982642,0.6909,3819.0,3818.9,1.9565]
[1753862982849,1.21455,3819.5,3819.4,0.7897]
[1753862983147,42.01455,3819.5,3819.4,1.9565]
[1753862983752,41.4909,3819.5,3819.4,1.9565]
[1753862983949,0.81012,3819.8,3819.7,0.2814]
[1753862984147,0.52362,3819.8,3819.7,1.9565]
[1753862984353,0.2865,3819.9,3819.8,1.9565]
[1753862985048,0.4044,3820.2,3820.0,0.52359]
[1753862985248,21.22,3820.8,3820.2,0.7586]
[1753862985456,1.21445,3820.3,3820.2,0.3127]
[1753862985958,0.2865,3819.7,3819.6,1.9565]
[1753862986250,0.4044,3819.9,3819.7,0.52363]
[1753862986449,0.6909,3819.9,3819.8,0.7897]
[1753862986650,0.6909,3819.9,3819.8,1.9565]
[1753862987254,0.2865,3819.9,3819.8,1.9565]
[1753862989260,0.8101,3819.9,3819.8,1.9565]
[1753862989455,0.92798,3820.1,3819.9,1.1668]
[1753862989661,1.21448,3820.1,3820.0,0.7897]
[1753862989865,1.21448,3820.1,3820.0,1.9565]
[1753862990756,1.21448,3820.1,3820.0,0.3127]
[1753862990963,1.21459,3819.3,3819.2,0.7897]
[1753862991162,1.21459,3819.3,3819.2,1.9565]
[1753862991368,0.7372,3819.3,3819.2,1.9565]
[1753862991967,0.7372,3819.3,3819.2,2.4802]
[1753862992263,0.95105,3819.6,3819.2,2.4802]
[1753862992569,0.7559,3819.5,3819.4,0.7891]
[1753862992769,0.7559,3819.5,3819.4,1.99]
[1753862993363,0.7559,3819.5,3819.4,2.51367]
[1753862993669,0.52363,3819.7,3819.4,1.1042]
[1753862993967,1.27953,3819.7,3819.6,1.99]
[1753862994162,1.27953,3819.7,3819.6,1.5595]
[1753862994666,1.27953,3819.7,3819.6,1.1042]
[1753862994868,1.27953,3819.7,3819.6,0.8192]
[1753862995858,1.27953,3819.7,3819.6,1.5595]
[1753862996063,1.27953,3819.7,3819.6,1.99]
[1753862997567,1.27953,3819.7,3819.6,0.8192]
[1753862997768,1.30843,3819.7,3819.6,0.3151]
[1753862999368,0.52373,3819.0,3818.9,0.7891]
[1753862999568,1.27963,3819.0,3818.9,0.7891]
[1753862999873,1.27968,3818.6,3818.5,0.8192]
[1753863000077,1.27968,3818.6,3818.5,0.3151]
[1753863000266,1.30858,3818.6,3818.5,0.3151]
[1753863000771,6.51727018,3818.6,3818.5,0.3151]
[1753863000976,1.27975,3818.1,3818.0,1.99]
[1753863001276,1.2358,3817.9,3817.8,6.37e-06]
[1753863001670,5.72957608,3817.9,3817.8,6.37e-06]
[1753863001973,40.8,3818.1,3817.8,6.37e-06]
[1753863001974,41.32385,3818.1,3817.8,1.67490637]
[1753863002174,40.8,3818.1,3818.0,1.2444]
[1753863002374,0.52382,3818.3,3817.8,0.52388637]
[1753863002577,1.3093,3819.1,3818.2,1.6749]
[1753863002771,0.4913,3818.7,3818.6,1.6749]
[1753863003167,0.52374,3818.9,3818.8,0.7891]
[1753863003372,1.27015341,3818.9,3818.8,0.7891]
[1753863003575,1.76145341,3818.9,3818.8,0.7891]
[1753863003775,1.44344,3818.9,3818.8,1.5595]
[1753863003976,1.44344,3818.9,3818.8,1.99]
[1753863005972,0.4913,3818.9,3818.8,1.99]
[1753863006374,0.71170453,3818.9,3818.8,1.99]
[1753863006883,1.14010453,3818.9,3818.8,1.99]
[1753863007073,1.14010453,3818.9,3817.9,1.5347]
[1753863007074,0.73397,3818.0,3817.9,1.5347]
[1753863007383,0.4274,3817.8,3817.4,0.5716]
[1753863007683,1.8055,3817.8,3817.7,1.2196]
[1753863007980,0.4936,3817.5,3817.4,0.7171]
[1753863008186,1.8055,3817.5,3817.4,0.2866]
[1753863008478,1.8055,3817.5,3817.4,0.7171]
[1753863008677,1.8055,3817.5,3817.4,1.2196]
[1753863009177,1.8055,3817.5,3817.4,1.6749]
[1753863009781,0.4913,3817.1,3817.0,1.6749]
[1753863010078,1.33138,3817.1,3817.0,1.99]
[1753863010284,2.32948,3817.1,3817.0,0.5716]
[1753863010670,1.8055,3817.1,3817.0,1.2444]
[1753863010878,1.8055,3817.1,3817.0,1.99]
[1753863011281,1.61483,3817.5,3817.4,0.7891]
[1753863011483,2.32943,3817.5,3817.4,1.2196]
[1753863011684,7.25297841,3817.5,3817.4,1.2196]
[1753863011881,7.56907841,3817.5,3817.4,0.5716]
[1753863012083,48.36907841,3817.5,3817.4,0.5716]
[1753863013376,48.36907841,3817.5,3816.7,0.9578]
[1753863013377,0.4913,3816.8,3816.7,0.9578]
[1753863013579,1.2348,3816.8,3816.7,1.2729]
[1753863013779,1.5183,3816.8,3816.7,1.6749]
[1753863014083,1.8055,3816.6,3816.5,1.6749]
[1753863014386,0.8074,3816.6,3816.5,1.99]
[1753863014678,1.8055,3816.6,3816.5,0.2866]
[1753863014871,1.8055,3816.6,3816.5,0.5041]
[1753863015075,0.8074,3816.6,3816.5,1.99]
[1753863015270,0.5262,3816.6,3816.5,1.99]
[1753863015678,0.52402,3816.9,3816.2,0.01834261]
[1753863015679,0.5262,3816.9,3816.8,2.08352]
[1753863015871,0.5262,3816.9,3816.8,1.99]
[1753863016073,1.33138,3817.2,3817.1,0.7891]
[1753863016277,1.75878,3817.2,3817.1,1.6749]
[1753863016487,7.28631485,3817.2,3817.1,1.6749]
[1753863016785,7.56981485,3817.2,3817.1,1.6749]
[1753863017572,7.04583485,3817.2,3817.1,1.6749]
[1753863020477,6.75863485,3817.2,3817.1,1.6749]
[1753863020682,6.75863485,3817.2,3817.1,1.99]
[1753863020683,1.2348,3817.2,3817.1,1.99]
[1753863023185,1.5235,3817.2,3817.1,1.99]
[1753863023578,1.5235,3817.2,3817.1,2.51398]
[1753863023579,0.8074,3817.2,3817.1,2.51398]
[1753863023985,0.8074,3817.2,3817.1,1.99]
[1753863024279,1.2436,3817.2,3817.1,1.99]
[1753863024486,1.8369,3817.2,3817.1,1.99]
[1753863024985,1.8369,3817.2,3817.1,1.6749]
[1753863025885,0.2101,3817.2,3817.1,1.9943]
[1753863026088,0.8199,3817.2,3817.1,1.9943]
[1753863026485,1.2561,3817.2,3817.1,1.9943]
[1753863029092,1.5435,3817.2,3817.1,1.9943]
[1753863030496,0.3128,3817.7,3817.4,1.985]
[1753863030785,22.4821,3817.6,3817.5,1.985]
[1753863030984,63.8741,3817.6,3817.5,1.985]
[1753863031190,64.39801,3817.6,3817.5,1.6656]
[1753863031391,64.39801,3817.6,3817.5,1.2218]
[1753863031784,63.8741,3817.6,3817.5,1.2218]
[1753863032392,63.8741,3817.6,3817.5,1.6656]
[1753863033390,23.0741,3817.6,3817.5,1.6656]
[1753863033785,1.8681,3817.6,3817.5,1.6656]
[1753863033988,23.0651,3817.6,3817.5,1.6656]
[1753863034197,1.8681,3817.6,3817.5,1.6656]
[1753863034396,23.0601,3817.6,3817.5,1.6656]
[1753863034593,23.0581,3817.6,3817.5,1.6656]
[1753863034794,1.8681,3817.6,3817.5,1.6656]
[1753863034988,23.0551,3817.6,3817.5,1.6656]
[1753863035191,1.8681,3817.6,3817.5,1.6656]
[1753863035389,23.0541,3817.6,3817.5,1.6656]
[1753863036391,21.186,3817.6,3817.5,1.2218]
[1753863036599,22.0117,3817.6,3817.5,0.7953]
[1753863036793,23.0481,3817.6,3817.5,0.7953]
[1753863037394,23.0481,3817.6,3817.5,1.985]
[1753863040296,41.76004,3818.2,3818.1,0.7953]
[1753863040599,22.7305,3818.2,3818.1,1.985]
[1753863041100,23.0351,3818.2,3818.1,1.985]
[1753863042200,0.218,3818.6,3818.5,1.4179]
[1753863042396,1.7815,3819.0,3818.9,1.985]
[1753863042696,63.7515,3819.0,3818.9,1.985]
[1753863043101,0.4481,3819.0,3818.9,1.985]
[1753863043503,0.218,3819.0,3818.9,1.985]
[1753863043905,1.7987,3819.0,3818.9,1.2218]
[1753863044207,2.0861,3819.0,3818.9,0.7953]
[1753863044510,2.0861,3819.0,3818.9,1.6656]
[1753863045102,0.52374,3818.9,3818.8,0.2834]
[1753863045407,2.39184,3818.9,3818.8,0.9381]
[1753863045705,2.39184,3818.9,3818.8,1.6656]
[1753863045903,0.7236,3818.7,3817.7,0.8703]
[1753863046208,2.10449,3818.5,3818.4,0.7953]
[1753863046409,2.39189,3818.5,3818.4,1.6656]
[1753863047703,1.2761,3818.0,3817.9,0.7953]
[1753863047903,1.5635,3818.0,3817.9,1.5412]
[1753863048209,1.1273,3818.0,3817.9,1.985]
[1753863048607,0.8399,3818.0,3817.9,1.985]
[1753863050912,0.8399,3818.0,3817.9,2.50887]
[1753863051313,1.2761,3818.0,3817.9,2.50887]
[1753863051711,1.4092,3818.0,3817.9,0.2834]
[1753863052019,1.5235,3817.4,3817.3,0.7953]
[1753863052207,0.52396,3817.3,3817.0,0.42]
[1753863052518,1.8108,3817.1,3817.0,1.2153]
[1753863052813,5.23841328,3817.4,3817.3,0.7953]
[1753863053010,6.06081328,3817.4,3817.3,1.9808]
[1753863053211,1.2415,3817.4,3817.3,1.9808]
[1753863053414,1.8108,3817.4,3817.3,1.9808]
[1753863054007,0.7781,3817.1,3817.0,1.2153]
[1753863054213,1.8108,3817.1,3817.0,0.7397]
[1753863054414,1.8108,3817.1,3817.0,1.9808]
[1753863056722,1.8108,3817.1,3817.0,1.2353]
[1753863056917,1.8108,3817.1,3817.0,1.6553]
[1753863058612,2.33478,3817.1,3817.0,1.6553]
[1753863059619,1.8108,3817.1,3817.0,1.6553]
[1753863060818,1.8108,3817.1,3817.0,1.9808]
[1753863061316,2.33478,3817.1,3817.0,1.9808]
[1753863061912,1.8108,3817.1,3817.0,1.9808]
[1753863062908,40.8,3817.2,3817.0,1.6553]
[1753863063117,40.8,3817.2,3816.4,1.3102]
[1753863063118,41.1263,3817.2,3817.1,1.9808]
[1753863063521,0.8224,3817.2,3817.1,1.9808]
[1753863063722,1.2415,3817.2,3817.1,1.9808]
[1753863064620,1.5288,3817.2,3817.1,1.9808]
[1753863064821,1.5288,3817.2,3817.1,2.50478]